bitfinex/quotes_SOLUSD_20250422
["timestamp","ask_amount","ask_price","bid_price","bid_amount"]
[1745285012979,7.20928555,138.71,138.7,31.42744207]
[1745285013489,7.20824623,138.73,138.7,31.42744207]
[1745285013788,20.0,138.82,138.69,26.0]
[1745285013789,7.2066878,138.76,138.72,31.42744207]
[1745285013991,7.2066878,138.76,138.75,31.42744207]
[1745285014180,7.2066878,138.76,138.74,31.42744207]
[1745285014975,25.22056156,138.78,138.74,31.42744207]
[1745285015274,7.20564922,138.78,138.75,31.42744207]
[1745285015676,7.20564922,138.78,138.76,31.42744207]
[1745285015980,7.20564922,138.78,138.77,31.42744207]
[1745285016273,7.20305409,138.83,138.77,31.42744207]
[1745285016580,7.20305409,138.83,138.82,31.42744207]
[1745285016956,7.20149791,138.86,138.82,31.42744207]
[1745285017270,7.20149791,138.86,138.85,31.42744207]
[1745285017968,7.20149791,138.86,138.81,26.0]
[1745285018175,18.00231426,138.88,138.84,31.42744207]
[1745285018373,18.00231426,138.88,138.85,31.42744207]
[1745285018677,7.19942404,138.9,138.86,31.42744207]
[1745285018971,7.19942404,138.9,138.88,31.42744207]
[1745285018972,7.26242404,138.9,138.88,31.42744207]
[1745285019352,38.68986611,138.9,138.83,32.1023]
[1745285019551,7.26242404,138.9,138.86,31.42744207]
[1745285019865,7.26242404,138.9,138.83,32.1023]
[1745285020066,56.68842622,138.9,138.85,31.42744207]
[1745285021072,56.68842622,138.9,138.83,32.1023]
[1745285021073,31.42744207,138.88,138.83,31.42744207]
[1745285021478,31.42744207,138.88,138.82,26.0]
[1745285021784,31.42744207,138.84,138.79,38.02294207]
[1745285021955,31.42744207,138.84,138.79,6.5955]
[1745285022157,31.42744207,138.83,138.77,31.42744207]
[1745285022377,7.20357297,138.82,138.77,31.42744207]
[1745285022578,25.2125054,138.82,138.74,6.5955]
[1745285022880,31.42744207,138.78,138.69,8.2213]
[1745285023089,31.42744207,138.77,138.72,31.42744207]
[1745285023287,31.42744207,138.75,138.69,8.2213]
[1745285023584,18.64964886,138.79,138.7,31.42744207]
[1745285023770,31.42744207,138.75,138.69,38.02294207]
[1745285023970,31.42744207,138.74,138.69,6.5955]
[1745285024171,31.42744207,138.73,138.68,1e-08]
[1745285024349,7.20876585,138.72,138.68,31.42744208]
[1745285024548,7.20876585,138.72,138.69,31.42744207]
[1745285024774,7.20876585,138.72,138.68,1e-08]
[1745285025278,25.23068049,138.72,138.68,31.42744208]
[1745285025665,25.23068049,138.72,138.69,31.42744207]
[1745285025878,7.20876585,138.72,138.69,31.42744207]
[1745285026061,50.07709093,138.78,138.71,31.42744207]
[1745285026260,31.42744207,138.75,138.68,1e-08]
[1745285026460,31.42744207,138.74,138.69,31.42744207]
[1745285026783,7.2066878,138.76,138.73,31.42744207]
[1745285027150,25.22340731,138.76,138.72,31.42744207]
[1745285027376,56.65084938,138.76,138.68,1e-08]
[1745285027566,25.22340731,138.76,138.68,1e-08]
[1745285027884,7.2066878,138.76,138.71,0.14216157]
[1745285028068,7.2066878,138.76,138.73,31.42744207]
[1745285028252,25.22340731,138.76,138.71,31.42744207]
[1745285028451,18.64964886,138.75,138.69,31.42744207]
[1745285028651,50.07709093,138.75,138.7,31.42744207]
[1745285029081,18.64964886,138.75,138.7,31.42744207]
[1745285029280,56.65084938,138.76,138.7,31.42744207]
[1745285029479,56.65084938,138.76,138.71,31.42744207]
[1745285029982,31.42744207,138.73,138.68,31.42744208]
[1745285030177,31.42744207,138.71,138.68,1e-08]
[1745285030384,31.42744207,138.7,138.68,1e-08]
[1745285030563,7.21032518,138.69,138.68,1e-08]
[1745285031178,7.21032518,138.69,138.68,31.42744208]
[1745285032086,7.21032518,138.69,138.68,1e-08]
[1745285032590,38.6372474,138.7,138.68,1e-08]
[1745285033188,7.20980533,138.7,138.68,1e-08]
[1745285033372,38.6372474,138.7,138.68,1e-08]
[1745285034288,7.20980533,138.7,138.68,1e-08]
[1745285034491,38.6372474,138.7,138.68,1e-08]
[1745285034784,31.42744207,138.69,138.68,1e-08]
[1745285035892,7.20980533,138.7,138.68,31.42744208]
[1745285036069,7.20980533,138.7,138.68,1e-08]
[1745285036270,38.6372474,138.7,138.68,1e-08]
[1745285036666,50.07709093,138.69,138.68,1e-08]
[1745285037093,18.64964886,138.68,138.65,1e-08]
[1745285037294,18.64964886,138.65,138.6,1.2667573]
[1745285037588,31.42744207,138.63,138.6,1.2667573]
[1745285038095,31.42744207,138.62,138.61,1e-08]
[1745285038889,38.6414083,138.62,138.61,1e-08]
[1745285039089,7.21396623,138.62,138.61,1e-08]
[1745285039778,38.6414083,138.62,138.61,1e-08]
[1745285040503,7.21396623,138.62,138.61,1e-08]
[1745285040794,7.21292556,138.64,138.61,31.42744208]
[1745285041101,25.24087456,138.67,138.61,1e-08]
[1745285041275,56.66831663,138.67,138.62,31.42744207]
[1745285041477,25.24087456,138.67,138.61,31.42744208]
[1745285041674,56.66831663,138.67,138.62,31.42744207]
[1745285041879,56.66831663,138.67,138.61,1e-08]
[1745285042194,56.66831663,138.67,138.62,31.42744207]
[1745285042494,25.24087456,138.67,138.63,31.42744207]
[1745285043573,56.66831663,138.67,138.61,1e-08]
[1745285044085,25.24087456,138.67,138.61,31.42744208]
[1745285044290,56.66831663,138.67,138.61,31.42744208]
[1745285044493,7.21136511,138.67,138.63,31.42744207]
[1745285044697,75.2942682,138.7,138.66,31.42744207]
[1745285044698,7.21032518,138.69,138.66,31.42744207]
[1745285045194,25.23504686,138.7,138.67,31.42744207]
[1745285045382,7.20980533,138.7,138.67,31.42744207]
[1745285045974,7.20980533,138.7,138.68,31.42744207]
[1745285046195,7.20772668,138.74,138.69,31.42744207]
[1745285046491,7.20772668,138.74,138.7,31.42744207]
[1745285046797,38.63516875,138.74,138.69,31.42744207]
[1745285046973,56.65541123,138.74,138.69,31.42744207]
[1745285047502,56.65541123,138.74,138.68,31.42744207]
[1745285047807,31.42744207,138.72,138.67,31.42744207]
[1745285047980,31.42744207,138.73,138.64,6.2325]
[1745285048181,31.42744207,138.73,138.67,31.42744207]
[1745285048389,25.22796916,138.74,138.67,31.42744207]
[1745285048702,31.42744207,138.73,138.68,31.42744207]
[1745285048897,25.22796916,138.74,138.69,31.42744207]
[1745285049314,7.20928555,138.71,138.67,57.42744207]
[1745285049602,7.20928555,138.71,138.67,26.0]
[1745285049803,25.23249944,138.71,138.66,31.42744207]
[1745285049989,56.65994151,138.71,138.66,31.42744207]
[1745285050388,7.20928555,138.71,138.68,31.42744207]
[1745285050796,7.20928555,138.71,138.67,57.42744207]
[1745285051002,25.23249944,138.71,138.67,57.42744207]
[1745285051203,7.20928555,138.71,138.68,31.42744207]
[1745285051394,7.20772668,138.74,138.7,31.42744207]
[1745285051596,7.20772668,138.74,138.71,31.42744207]
[1745285052697,7.20772668,138.74,138.64,37.65994207]
[1745285052698,56.65448545,138.74,138.64,37.65994207]
[1745285052881,56.65448545,138.74,138.68,31.42744207]
[1745285053282,7.20928555,138.71,138.67,26.0]
[1745285053599,7.20928555,138.71,138.67,57.42744207]
[1745285054105,7.20928555,138.71,138.68,31.42744207]
[1745285054291,31.42744207,138.73,138.67,26.0]
[1745285054292,7.20824623,138.73,138.7,31.42744207]
[1745285054612,7.20616848,138.77,138.72,31.42744207]
[1745285054791,7.20616848,138.77,138.74,31.42744207]
[1745285054994,25.22158968,138.77,138.72,31.42744207]
[1745285055180,25.22158968,138.77,138.67,0.14216157]
[1745285055377,25.22158968,138.77,138.73,31.42744207]
[1745285055807,25.22158968,138.77,138.72,31.42744207]
[1745285056195,25.22158968,138.77,138.73,31.42744207]
[1745285056594,7.20616848,138.77,138.74,31.42744207]
[1745285057204,7.20616848,138.77,138.69,26.0]
[1745285057418,7.20616848,138.77,138.7,26.14216157]
[1745285057705,25.22158968,138.77,138.73,31.42744207]
[1745285057911,25.22158968,138.77,138.72,31.42744207]
[1745285058204,25.22158968,138.77,138.73,31.42744207]
[1745285058707,25.22158968,138.77,138.72,31.42744207]
[1745285059205,25.22158968,138.77,138.73,31.42744207]
[1745285059710,18.0154212,138.77,138.7,26.14216157]
[1745285059918,7.26864922,138.78,138.74,31.42744207]
[1745285060211,7.26864922,138.78,138.75,31.42744207]
[1745285060713,7.26864922,138.78,138.71,6.0837]
[1745285060714,7.26864922,138.78,138.74,31.42744207]
[1745285060895,0.063,138.78,138.74,1.5416]
[1745285061101,0.063,138.78,138.71,26.72586157]
[1745285061297,0.063,138.78,138.74,57.42744207]
[1745285061823,0.063,138.78,138.75,31.42744207]
[1745285062006,0.063,138.78,138.74,57.42744207]
[1745285062205,0.063,138.78,138.74,26.0]
[1745285062406,0.063,138.78,138.74,31.42744207]
[1745285063197,31.49044207,138.78,138.73,31.42744207]
[1745285063387,0.063,138.78,138.67,6.5207]
[1745285063591,31.42744207,138.77,138.71,31.42744207]
[1745285063902,31.42744207,138.74,138.67,6.5207]
[1745285064220,7.2066878,138.76,138.7,31.42744207]
[1745285064221,31.42744207,138.75,138.7,31.42744207]
[1745285064402,25.22340731,138.76,138.72,31.42744207]
[1745285064793,56.65084938,138.76,138.71,31.42744207]
[1745285065701,7.2066878,138.76,138.7,26.0]
[1745285065909,7.2066878,138.76,138.72,31.42744207]
[1745285066829,7.2066878,138.76,138.7,26.0]
[1745285067025,31.42744207,138.74,138.69,31.42744207]
[1745285067323,25.22340731,138.76,138.67,21.27968493]
[1745285067515,21.27968493,138.73,138.68,21.27968493]
[1745285068296,21.27968493,138.73,138.67,21.27968493]
[1745285068717,21.27968493,138.72,138.67,21.27968493]
[1745285069015,18.64964886,138.74,138.65,26.0]
[1745285069219,21.27968493,138.71,138.65,26.0]
[1745285069418,7.20980533,138.7,138.66,21.27968493]
[1745285069624,7.20980533,138.7,138.65,26.0]
[1745285069918,7.20980533,138.7,138.62,1.73386157]
[1745285069919,21.27968493,138.69,138.62,1.5917]
[1745285070108,21.27968493,138.68,138.61,1e-08]
[1745285070306,21.27968493,138.68,138.63,21.27968493]
[1745285070609,39.92933379,138.69,138.63,21.27968493]
[1745285070823,18.64964886,138.69,138.63,21.27968493]
[1745285071007,18.64964886,138.69,138.61,1e-08]
[1745285071206,39.92933379,138.69,138.61,1e-08]
[1745285071396,25.23977788,138.67,138.62,21.27968493]
[1745285071803,25.23977788,138.67,138.63,21.27968493]
[1745285072120,7.21032518,138.69,138.66,21.27968493]
[1745285072319,7.21032518,138.69,138.68,21.27968493]
[1745285073018,7.21032518,138.69,138.63,26.0]
[1745285073225,7.21032518,138.69,138.65,21.27968493]
[1745285073527,7.20980533,138.7,138.66,21.27968493]
[1745285073823,7.20980533,138.7,138.68,21.27968493]
[1745285074353,7.20980533,138.7,138.67,21.27968493]
[1745285074732,25.23167523,138.72,138.64,0.14216157]
[1745285074906,46.51136016,138.72,138.67,21.27968493]
[1745285075228,25.23167523,138.72,138.64,0.14216157]
[1745285075523,21.27968493,138.7,138.63,26.0]
[1745285075699,21.27968493,138.7,138.65,21.27968493]
[1745285076114,21.27968493,138.7,138.63,26.0]
[1745285076321,21.27968493,138.69,138.64,21.27968493]
[1745285076504,21.27968493,138.69,138.63,47.27968493]
[1745285076706,21.27968493,138.68,138.63,47.27968493]
[1745285077123,21.27968493,138.69,138.63,47.27968493]
[1745285077428,21.27968493,138.68,138.63,21.27968493]
[1745285077598,46.5,138.7,138.61,1e-08]
[1745285077805,18.64964886,138.68,138.61,1e-08]
[1745285078130,21.27968493,138.65,138.61,1e-08]
[1745285078711,25.24523946,138.64,138.61,1e-08]
[1745285079826,21.27968493,138.63,138.61,1e-08]
[1745285080220,21.27968493,138.62,138.6,1e-08]
[1745285080526,39.92933379,138.63,138.6,1e-08]
[1745285080924,21.27968493,138.63,138.6,1e-08]
[1745285081227,25.24523946,138.64,138.6,1e-08]
[1745285081426,25.24523946,138.64,138.6,21.27968494]
[1745285081733,25.24523946,138.64,138.61,21.27968493]
[1745285081734,18.0323139,138.64,138.61,21.27968493]
[1745285081938,18.0323139,138.64,138.6,1e-08]
[1745285081939,18.0323139,138.64,138.6,21.27968494]
[1745285082426,39.31199883,138.64,138.6,1e-08]
[1745285082830,18.0323139,138.64,138.6,1e-08]
[1745285083230,39.31199883,138.64,138.6,1e-08]
[1745285083828,46.52492439,138.64,138.6,1e-08]
[1745285084432,21.27968493,138.63,138.6,1e-08]
[1745285084621,25.24523946,138.64,138.6,1e-08]
[1745285084829,21.27968493,138.63,138.6,1e-08]
[1745285085007,21.27968493,138.62,138.6,1e-08]
[1745285085333,39.92933379,138.61,138.6,1e-08]
[1745285085909,47.14382047,138.61,138.6,1e-08]
[1745285087022,18.64964886,138.6,138.55,1e-08]
[1745285087223,21.27968493,138.56,138.54,1e-08]
[1745285087425,44.64964886,138.6,138.54,1e-08]
[1745285087737,21.27968493,138.59,138.54,21.27968494]
[1745285087914,25.25434734,138.59,138.56,21.27968493]
[1745285088116,21.27968493,138.57,138.54,1e-08]
[1745285088421,18.64964886,138.58,138.54,1e-08]
[1745285088723,21.27968493,138.57,138.54,1e-08]
[1745285089418,79.98163527,138.59,138.54,1e-08]
[1745285089419,21.27968493,138.55,138.54,1e-08]
[1745285090020,28.4972959,138.55,138.54,1e-08]
[1745285090433,47.14694476,138.55,138.54,1e-08]
[1745285090911,67.28910633,138.55,138.54,1e-08]
[1745285091244,18.64964886,138.51,138.42,8.0543]
[1745285091417,21.27968493,138.5,138.42,8.0543]
[1745285091732,21.27968493,138.52,138.47,21.27968493]
[1745285091935,25.26893364,138.51,138.47,21.27968493]
[1745285092113,46.54861857,138.51,138.46,21.27968493]
[1745285092621,46.54861857,138.51,138.42,6.4514]
[1745285092622,21.27968493,138.48,138.42,6.4514]
[1745285092827,21.27968493,138.48,138.43,21.27968493]
[1745285093230,18.64964886,138.5,138.42,27.73108493]
[1745285093436,21.27968493,138.48,138.42,27.73108493]
[1745285093736,21.27968493,138.47,138.42,26.0]
[1745285093941,25.27805864,138.46,138.42,26.0]
[1745285094240,46.55774357,138.46,138.42,26.0]
[1745285094537,25.27805864,138.46,138.41,26.0]
[1745285094742,46.55774357,138.46,138.41,21.27968493]
[1745285094941,25.27805864,138.46,138.43,21.27968493]
[1745285095136,7.22230247,138.46,138.44,21.27968493]
[1745285095643,25.27805864,138.46,138.43,21.27968493]
[1745285095827,25.27805864,138.46,138.42,21.27968493]
[1745285096030,25.27805864,138.46,138.41,26.0]
[1745285096234,25.27805864,138.46,138.42,21.27968493]
[1745285097153,7.22230247,138.46,138.45,21.27968493]
[1745285097441,55.91847664,138.51,138.45,47.27968493]
[1745285097442,7.22125938,138.48,138.45,47.27968493]
[1745285097645,7.22125938,138.48,138.47,21.27968493]
[1745285097845,19.82,138.51,138.47,21.27968493]
[1745285098031,7.2202166,138.5,138.48,21.27968493]
[1745285098432,7.2202166,138.5,138.49,21.27968493]
[1745285098639,7.2202166,138.5,138.45,26.0]
[1745285098841,7.2202166,138.5,138.49,21.27968493]
[1745285099834,7.21865299,138.53,138.49,21.27968493]
[1745285100148,7.21709006,138.56,138.52,21.27968493]
[1745285100345,7.21709006,138.56,138.55,21.27968493]
[1745285100955,7.21552781,138.59,138.5,27.77266157]
[1745285101243,21.27968493,138.56,138.5,27.6305]
[1745285101445,21.27968493,138.56,138.5,26.0]
[1745285101630,44.64964886,138.56,138.48,21.27968493]
[1745285101839,65.92933379,138.56,138.51,21.27968493]
[1745285102032,7.21709006,138.56,138.52,21.27968493]
[1745285102430,21.27968493,138.54,138.49,26.0]
[1745285102632,21.27968493,138.54,138.49,21.27968493]
[1745285103048,21.27968493,138.55,138.5,21.27968493]
[1745285103345,21.27968493,138.54,138.49,21.27968493]
[1745285103650,21.27968493,138.55,138.5,21.27968493]
[1745285104159,25.2634618,138.54,138.5,21.27968493]
[1745285104333,25.2634618,138.54,138.52,21.27968493]
[1745285104334,7.21813194,138.54,138.52,21.27968493]
[1745285104534,7.21709006,138.56,138.53,21.27968493]
[1745285104751,7.21709006,138.56,138.55,21.27968493]
[1745285105056,7.21604849,138.58,138.55,21.27968493]
[1745285105256,7.21604849,138.58,138.57,21.27968493]
[1745285105961,7.21604849,138.58,138.57,64.55968493]
[1745285106127,18.03757092,138.6,138.57,21.27968493]
[1745285106327,39.31725585,138.6,138.53,0.14216157]
[1745285106529,21.27968493,138.58,138.53,21.27968493]
[1745285106823,39.92933379,138.59,138.5,32.3539]
[1745285107028,21.27968493,138.58,138.53,21.27968493]
[1745285107253,21.27968493,138.57,138.52,21.27968493]
[1745285107449,21.27968493,138.56,138.51,21.27968493]
[1745285107962,18.64964886,138.56,138.48,21.30968493]
[1745285108254,25.26163839,138.55,138.51,21.27968493]
[1745285108641,46.54132332,138.55,138.5,21.27968493]
[1745285109046,25.26163839,138.55,138.51,21.27968493]
[1745285109763,18.64964886,138.54,138.48,26.03]
[1745285110058,39.92933379,138.54,138.49,21.27968493]
[1745285110257,46.54497041,138.53,138.48,26.03]
[1745285110435,46.54497041,138.53,138.48,47.30968493]
[1745285110749,25.26528548,138.53,138.48,47.30968493]
[1745285110956,25.26528548,138.53,138.48,26.03]
[1745285111149,25.26528548,138.53,138.48,47.30968493]
[1745285111346,25.26528548,138.53,138.49,21.27968493]
[1745285111556,25.26528548,138.53,138.5,21.27968493]
[1745285111764,39.92933379,138.52,138.48,0.03]
[1745285112054,21.27968493,138.51,138.48,0.03]
[1745285112255,25.26929652,138.51,138.48,0.03]
[1745285112466,7.21969532,138.51,138.5,21.27968493]
[1745285113033,7.21969532,138.51,138.48,21.30968493]
[1745285113234,7.21969532,138.51,138.5,21.27968493]
[1745285113439,7.21969532,138.51,138.48,0.03]
[1745285113861,7.21969532,138.51,138.49,21.27968493]
[1745285114232,18.0466461,138.53,138.5,21.27968493]
[1745285114767,18.0466461,138.53,138.49,21.27968493]
[1745285115842,25.26529909,138.53,138.49,21.27968493]
[1745285116557,21.27968493,138.5,138.48,0.03]
[1745285117272,21.27968493,138.49,138.43,21.27968493]
[1745285117445,21.27968493,138.48,138.43,21.27968493]
[1745285117648,21.27968493,138.48,138.42,21.27968493]
[1745285117975,46.55591804,138.47,138.42,21.27968493]
[1745285118168,21.27968493,138.46,138.4,6.6016]
[1745285118466,21.27968493,138.46,138.41,21.27968493]
[1745285118663,39.92933379,138.45,138.4,21.30968493]
[1745285118970,21.27968493,138.44,138.4,0.03]
[1745285119559,18.64964886,138.46,138.4,0.03]
[1745285119768,21.27968493,138.44,138.39,21.27968493]
[1745285120069,18.05966914,138.43,138.39,21.27968493]
[1745285120453,18.05966914,138.43,138.4,21.27968493]
[1745285121261,36.709318,138.43,138.36,26.0]
[1745285121462,18.05966914,138.43,138.41,21.27968493]
[1745285121865,18.05966914,138.43,138.4,21.27968493]
[1745285122456,7.22334585,138.44,138.4,21.27968493]
[1745285122669,7.22073795,138.49,138.43,21.27968493]
[1745285122835,20.0,138.56,138.48,21.27968493]
[1745285123042,7.21761097,138.55,138.52,21.27968493]
[1745285123241,7.21761097,138.55,138.51,21.27968493]
[1745285123460,7.21761097,138.55,138.47,26.0]
[1745285123763,7.21761097,138.55,138.51,21.27968493]
[1745285123969,7.21761097,138.55,138.52,21.27968493]
[1745285124269,25.25981523,138.56,138.52,21.27968493]
[1745285124461,25.25981523,138.56,138.48,27.5591465]
[1745285124644,25.25981523,138.56,138.52,21.27968493]
[1745285124844,25.25981523,138.56,138.48,27.5591465]
[1745285125055,25.25981523,138.56,138.52,21.27968493]
[1745285125363,25.25981523,138.56,138.5,0.14216157]
[1745285125571,25.25981523,138.56,138.53,21.27968493]
[1745285125882,7.21604849,138.58,138.55,21.27968493]
[1745285126178,7.21604849,138.58,138.57,21.27968493]
[1745285126353,7.21552781,138.59,138.57,21.27968493]
[1745285126749,7.21552781,138.59,138.56,21.27968493]
[1745285127054,25.25434734,138.59,138.5,1.78676157]
[1745285127259,21.27968493,138.55,138.48,6.1373]
[1745285127471,44.64964886,138.58,138.51,21.27968493]
[1745285127653,21.27968493,138.56,138.51,21.27968493]
[1745285128162,21.27968493,138.56,138.5,21.27968493]
[1745285128550,21.27968493,138.54,138.49,21.27968493]
[1745285129256,31.52042414,138.54,138.49,31.52042414]
[1745285129671,75.43171139,138.55,138.49,31.52042414]
[1745285130059,31.52042414,138.54,138.49,31.52042414]
[1745285130357,75.43171139,138.55,138.49,31.52042414]
[1745285130559,31.52042414,138.52,138.46,57.52042414]
[1745285130855,18.64964886,138.5,138.42,1.6746]
[1745285131162,19.72,138.5,138.43,26.0]
[1745285131373,19.72,138.5,138.46,31.52042414]
[1745285131667,18.64964886,138.49,138.45,31.52042414]
[1745285131969,19.72,138.5,138.48,31.52042414]
[1745285132169,19.72,138.5,138.49,31.52042414]
[1745285132469,19.72,138.5,138.48,31.52042414]
[1745285132768,7.22073795,138.49,138.48,31.52042414]
[1745285133077,18.04641221,138.54,138.48,63.04084828]
[1745285133254,7.21709006,138.56,138.53,31.52042414]
[1745285133564,7.21709006,138.56,138.55,31.52042414]
[1745285133767,7.21709006,138.56,138.52,0.14216157]
[1745285133949,7.21709006,138.56,138.51,26.0]
[1745285133950,7.21709006,138.56,138.55,31.52042414]
[1745285134543,18.04047088,138.58,138.55,31.52042414]
[1745285134746,7.21552781,138.59,138.51,26.0]
[1745285134747,7.21552781,138.59,138.57,31.52042414]
[1745285134973,7.21552781,138.59,138.58,31.52042414]
[1745285135148,7.21552781,138.59,138.55,0.14216157]
[1745285135348,25.25434734,138.59,138.54,32.1373]
[1745285135568,25.25434734,138.59,138.58,31.52042414]
[1745285135772,7.21552781,138.59,138.58,31.52042414]
[1745285136069,7.27765719,138.61,138.58,31.52042414]
[1745285136484,7.27765719,138.61,138.55,31.52042414]
[1745285136485,18.64964886,138.6,138.55,31.52042414]
[1745285136780,25.25434734,138.59,138.54,32.1373]
[1745285136944,25.25434734,138.59,138.55,31.52042414]
[1745285137150,7.21552781,138.59,138.57,31.52042414]
[1745285137376,7.21552781,138.59,138.58,31.52042414]
[1745285138057,7.21552781,138.59,138.57,31.52042414]
[1745285139187,18.03773888,138.6,138.57,31.52042414]
[1745285139858,18.03773888,138.6,138.58,31.52042414]
[1745285140255,18.03773888,138.6,138.54,32.1373]
[1745285140451,18.64964886,138.59,138.54,31.52042414]
[1745285140761,18.64964886,138.59,138.51,6.2379]
[1745285140762,18.03773888,138.6,138.56,31.52042414]
[1745285141273,7.27748668,138.61,138.59,31.52042414]
[1745285141484,7.27748668,138.61,138.6,31.52042414]
[1745285142965,0.063,138.61,138.6,31.52042414]
[1745285143678,0.063,138.61,138.57,0.14216157]
[1745285143856,0.063,138.61,138.6,31.52042414]
[1745285144268,0.063,138.61,138.6,31.66258571]
[1745285145383,0.063,138.61,138.6,31.52042414]
[1745285145675,0.063,138.61,138.59,26.0]
[1745285145885,0.063,138.61,138.59,57.52042414]
[1745285146877,0.063,138.61,138.6,31.52042414]
[1745285147583,0.063,138.61,138.59,57.52042414]
[1745285147759,0.063,138.61,138.6,31.52042414]
[1745285148557,0.063,138.61,138.59,31.52042414]
[1745285148986,0.063,138.61,138.58,31.52042414]
[1745285150381,18.71264886,138.61,138.57,31.52042414]
[1745285150980,50.233073,138.61,138.53,6.2379]
[1745285151276,50.233073,138.61,138.55,21.31612354]
[1745285151277,59.1287724,138.61,138.55,21.31612354]
[1745285151582,18.64964886,138.59,138.55,21.31612354]
[1745285151771,25.25252524,138.6,138.56,21.31612354]
[1745285151976,25.25252524,138.6,138.53,32.2379]
[1745285152176,18.64964886,138.59,138.55,21.31612354]
[1745285152785,18.64964886,138.59,138.56,21.31612354]
[1745285153086,25.25252524,138.6,138.57,21.31612354]
[1745285153289,7.21500721,138.6,138.59,21.31612354]
[1745285154093,7.27766439,138.61,138.59,21.31612354]
[1745285154379,7.27766439,138.61,138.6,21.31612354]
[1745285154681,7.27766439,138.61,138.56,26.14216157]
[1745285154882,7.27766439,138.61,138.59,21.31612354]
[1745285155086,25.31388111,138.61,138.59,21.31612354]
[1745285155788,0.063,138.61,138.59,21.31612354]
[1745285155994,0.063,138.61,138.56,26.0]
[1745285156293,0.063,138.61,138.58,21.31612354]
[1745285156787,0.063,138.61,138.56,26.0]
[1745285157390,0.063,138.61,138.6,21.31612354]
[1745285157990,0.063,138.61,138.56,90.73828511]
[1745285158190,0.063,138.61,138.56,173.33828511]
[1745285158363,0.063,138.61,138.6,21.31612354]
[1745285158765,0.063,138.61,138.56,173.33828511]
[1745285158970,0.063,138.61,138.6,21.31612354]
[1745285159989,0.063,138.61,138.6,21.45828511]
[1745285160287,0.063,138.61,138.6,27.53888511]
[1745285164091,0.063,138.61,138.58,82.6]
[1745285164268,0.063,138.61,138.6,21.31612354]
[1745285164592,18.64964886,138.6,138.52,6.0806]
[1745285164795,21.31612354,138.59,138.54,21.31612354]
[1745285164979,39.9657724,138.6,138.55,21.31612354]
[1745285165180,21.31612354,138.59,138.52,32.0806]
[1745285165376,21.31612354,138.59,138.54,21.31612354]
[1745285166093,25.25616971,138.58,138.54,21.31612354]
[1745285167493,82.6525357,138.58,138.49,101.7]
[1745285167786,21.31612354,138.56,138.5,3.73655843]
[1745285167993,21.31612354,138.55,138.5,25.05268197]
[1745285168194,25.2634618,138.54,138.5,21.31612354]
[1745285168794,7.21813194,138.54,138.53,21.31612354]
[1745285169175,7.21813194,138.54,138.49,26.0]
[1745285169392,7.21813194,138.54,138.5,21.31612354]
[1745285169588,25.2634618,138.54,138.5,21.31612354]
[1745285169789,25.2634618,138.54,138.45,88.6733]
[1745285169991,21.31612354,138.52,138.45,6.0733]
[1745285170183,25.26893364,138.51,138.47,21.31612354]
[1745285170391,25.26893364,138.51,138.46,3.74058269]
[1745285170593,25.26893364,138.51,138.47,21.31612354]
[1745285171279,46.58505718,138.51,138.46,21.31612354]
[1745285171481,25.26893364,138.51,138.45,21.31612354]
[1745285171682,21.31612354,138.5,138.45,47.31612354]
[1745285172082,46.58505718,138.51,138.45,47.31612354]
[1745285172280,46.58505718,138.51,138.46,21.31612354]
[1745285172489,46.58505718,138.51,138.45,26.0]
[1745285172692,46.58505718,138.51,138.46,21.31612354]
[1745285172870,39.9657724,138.5,138.45,21.31612354]
[1745285173188,21.31612354,138.49,138.44,21.31612354]
[1745285173895,21.31612354,138.49,138.43,21.31612354]
[1745285174069,21.31612354,138.49,138.42,32.1033]
[1745285174275,21.31612354,138.45,138.42,0.03]
[1745285174475,18.64964886,138.45,138.42,0.03]
[1745285174783,39.9657724,138.45,138.42,0.03]
[1745285175190,18.64964886,138.45,138.42,0.03]
[1745285175398,39.9657724,138.45,138.42,0.03]
[1745285175593,39.9657724,138.43,138.42,1e-08]
[1745285175790,18.64964886,138.43,138.42,1e-08]
[1745285176180,25.87351651,138.43,138.42,1e-08]
[1745285176387,47.18964005,138.43,138.42,1e-08]
[1745285176875,73.18964005,138.43,138.42,1e-08]
[1745285177298,73.33180162,138.43,138.42,1e-08]
[1745285177794,73.33180162,138.43,138.34,6.80429982]
[1745285177795,18.64964886,138.39,138.34,0.03]
[1745285178003,21.31612354,138.38,138.34,0.03]
[1745285178380,25.29450025,138.37,138.34,0.03]
[1745285178781,46.61062379,138.37,138.34,0.03]
[1745285179082,39.9657724,138.35,138.34,1e-08]
[1745285179431,39.9657724,138.35,138.28,21.31612354]
[1745285179605,39.9657724,138.35,138.27,26.0]